Cogmind - Beta 13 @@@ ROGUE MODE // 2024.04.03 @ 23:04:54 Player: engineer Result: Destroyed by G-47 Trooper with Particle Gun Performance ------------- Evolutions (2) 1000 Regions Visited (3) 600 Robots Destroyed (21) 105 Value Destroyed (493) 493 Prototype IDs (0) 0 Alien Tech Used (0) 0 Bonus (0) 0 TOTAL SCORE: 2198 Bonus ------- None Cogmind --------- Core Integrity 0/550 Matter 159/300 Energy 100/100 System Corruption 14% Temperature Cool (9) Movement Core (50) Location -8/Materials Parts ------- > --- POWER (1) -------- (None) > --- PROPULSION (5) --- (None) > --- UTILITY (3) ------ Visual Processing Unit > --- WEAPON (2) ------- (None) > --- INVENTORY (5) ---- Flight Unit Small Storage Unit Machine Analyzer Signal Interpreter Improved Datajack Peak State ------------ > --- POWER ------------ Ion Engine > --- PROPULSION ------- Flight Unit Flight Unit Flight Unit Flight Unit > --- UTILITY ---------- Visual Processing Unit Sensor Array Hacking Suite > --- WEAPON ----------- Assault Rifle Assault Rifle > --- INVENTORY -------- Flight Unit Small Storage Unit Machine Analyzer Signal Interpreter [Rating: 13] Favorites ----------- Power Light Ion Engine Engine Light Ion Engine Propulsion Light Treads Treads Light Treads Flight Unit Flight Unit Utility Visual Processing Unit Device Sensor Array Storage Large Storage Unit Processor Visual Processing Unit Hackware Hacking Suite Weapon Assault Rifle Ballistic Gun Assault Rifle Launcher Grenade Launcher Slashing Weapon Mining Claw Build | -11 -10 -9 -8 ------- Run | Yrd Mat Mat Mat Slots Evolved 4 | . . 2 2 Power . | . . . . Propulsion 3 | . . 2 1 Utility 1 | . . . 1 Weapon . | . . . . Parts Attached 24 | 6 7 8 3 Power 3 | 1 1 1 . Engine 3 | 1 1 1 . Core . | . . . . Reactor . | . . . . Propulsion 6 | 2 . 4 . Treads 2 | 2 . . . Leg . | . . . . Wheel . | . . . . Hover . | . . . . Flight 4 | . . 4 . Utility 7 | 1 2 1 3 Device 2 | . . . 2 Storage 3 | 1 1 . 1 Processor 1 | . 1 . . Hackware 1 | . . 1 . Protection . | . . . . Artifact . | . . . . Weapon 8 | 2 4 2 . Energy Gun . | . . . . Energy Cannon . | . . . . Ballistic Gun 6 | 2 2 2 . Ballistic Cannon . | . . . . Launcher 1 | . 1 . . Special Weapon . | . . . . Impact Weapon . | . . . . Slashing Weapon 1 | . 1 . . Piercing Weapon . | . . . . Special Melee Weapon . | . . . . Unidentified Prototypes . | . . . . Parts Lost 13 | . 4 . 9 Power 3 | . 2 . 1 Propulsion 6 | . 2 . 4 Utility 2 | . . . 2 Weapon 2 | . . . 2 Highest Loss Streak 9 | . 3 . 9 To Critical Strikes . | . . . . Average Slot Usage (%) 92 | . 93 100 84 Engine 11 | . 12 11 8 Treads 20 | . 24 . . Flight 6 | . . 44 33 Storage 11 | . 14 . 1 Processor 12 | . 12 11 9 Hackware 1 | . . 11 9 Ballistic Gun 24 | . 25 22 16 Slashing Weapon 1 | . 2 . . Naked Turns . | . . . . Heaviest Build 28 | 11 28 9 14 Greatest Support 40 | 40 40 16 16 Greatest Overweight (x) 7 | . 7 . 2 Average Overweight (x) . | . . . . Largest Inventory Capacity 15 | 8 15 15 8 Average Capacity 12 | 6 14 5 5 Most Carried 15 | 1 15 14 5 Average Carried 5 | . 5 5 4 Final Capacity 15 | 8 15 5 5 Final Carried 15 | 1 15 5 5 Class Distribution -------------------- 82% | Mutant 17% | Sprinter Dominant Class ---------------- Mutant | -10/Materials Sprinter | -9/Materials Sprinter | -8/Materials Resources | -11 -10 -9 -8 ----------- Run | Yrd Mat Mat Mat Matter Collected 565 | 202 321 42 . Remotely . | . . . . Salvage Created 542 | . 500 42 . Parts 50 | . 49 1 . Haulers Intercepted . | . . . . Recyclers Shooed 2 | . 2 . . Parts Field Recycled . | . . . . Retrieved Matter . | . . . . Parts Self-Destructed . | . . . . Prevented . | . . . . Kills | -11 -10 -9 -8 ------- Run | Yrd Mat Mat Mat Combat Hostiles Destroyed 16 | . 15 1 . Guns 14 | . 13 1 . AOE 2 | . 2 . . Classes Destroyed 4 | . 4 . . Operator 2 | . 2 . . Watcher 3 | . 3 . . Swarmer 6 | . 6 . . Grunt 10 | . 9 1 . Best Kill Streak 5 | . 5 1 . Combat Bots Only 4 | . 4 1 . Max Kills in Single Turn 2 | . 2 1 . Gunslinging 1 | . 1 . . Exploded 2 | . 2 . . Melee . | . . . . Uniques/NPCs Destroyed . | . . . . Combat | -11 -10 -9 -8 -------- Run | Yrd Mat Mat Mat Hostile Shots Fired 149 | . 56 25 68 Missed 37 | . 11 11 15 Damage Taken 1757 | . 722 155 880 Core 745 | . 129 52 564 Absorbed by Shields . | . . . . Core Remaining (%) 78 | 100 48 87 . Volleys Fired 64 | . 53 5 6 Largest 2 | . 2 2 2 Hottest 50 | . 50 40 40 Shots Fired 128 | . 106 10 12 Gun 126 | . 104 10 12 Cannon . | . . . . Launcher 2 | . 2 . . Special . | . . . . Kinetic 126 | . 104 10 12 Thermal . | . . . . Explosive 2 | . 2 . . Electromagnetic . | . . . . Robot Hit Streak 8 | . 8 4 3 Robot Miss Streak 6 | . 6 3 4 Penetration Max . | . . . . Secondary Targets 2 | . 1 1 . Max Gunslinging Chain 1 | . 1 1 . Shots Hit Robots 69 | . 58 6 5 Core Hits 35 | . 33 1 1 Critical Kills . | . . . . Critical Parts Destroyed . | . . . . Critical Strikes . | . . . . Melee Attacks 19 | . 19 . . Impact . | . . . . Slashing 19 | . 19 . . Piercing . | . . . . Sneak Attacks . | . . . . Combat Hostiles . | . . . . Follow-up Attacks . | . . . . Damage Inflicted 877 | . 742 71 64 Guns 786 | . 651 71 64 Cannons . | . . . . Explosions 91 | . 91 . . Melee . | . . . . Ramming . | . . . . Kinetic 786 | . 651 71 64 Thermal . | . . . . Explosive 91 | . 91 . . Electromagnetic . | . . . . Impact . | . . . . Slashing . | . . . . Piercing . | . . . . Highest Corruption 14 | . 6 . 14 Average Corruption 5 | . 5 . 11 Corruption Purged . | . . . . Corruption Blocked . | . . . . Effects 6 | . 6 . . Message Errors 1 | . 1 . . Matter Fused 4 | . 4 . . Data Loss (major) 1 | . 1 . . Overload Shots . | . . . . Overflow Damage . | . . . . Projectiles . | . . . . Explosions . | . . . . Melee . | . . . . Knockbacks . | . . . . Impact . | . . . . Kinetic . | . . . . Secondary . | . . . . Self-Inflicted Damage 20 | . 20 . . Shots 1 | . 1 . . Rammed . | . . . . Targets Rammed . | . . . . Kicked . | . . . . Crushed . | . . . . Highest Temperature 65 | . 18 6 65 Average Temperature 14 | . 7 4 43 Received Heat Transfer 660 | . 231 33 396 Siege Activations . | . . . . Robots Corrupted . | . . . . Combat Hostiles . | . . . . Parts Fried . | . . . . Impact Corruptions . | . . . . Robots Melted . | . . . . Combat Hostiles . | . . . . Parts Melted . | . . . . Heat Transferred . | . . . . Parts Sabotaged . | . . . . Parts Stolen . | . . . . Parts Stripped . | . . . . Power Chain Reactions . | . . . . Alert | -11 -10 -9 -8 ------- Run | Yrd Mat Mat Mat Peak Influence 250 | . 230 250 223 Initial 105 | . . . 105 Average 72 | . 64 47 161 Maximum Alert Level 1 | . 1 1 1 Low Security (%) 96 | 100 96 96 95 Level 1 3 | . 3 3 4 Level 2 . | . . . . Level 3 . | . . . . Level 4 . | . . . . Level 5 . | . . . . High Security . | . . . . Max Security . | . . . . Squads Dispatched 5 | . 4 1 . Investigation 1 | . 1 . . Extermination . | . . . . Reinforcement 4 | . 3 1 . Assault . | . . . . Garrison . | . . . . Intercept . | . . . . Searches Triggered . | . . . . Construction Impeded . | . . . . Haulers Reinforced . | . . . . Active Scanning Responses . | . . . . Cargo Convoy Interrupts . | . . . . Stealth | -11 -10 -9 -8 --------- Run | Yrd Mat Mat Mat Distress Signals 4 | . 3 1 . Communications Jammed . | . . . . Distress Signals . | . . . . Times Spotted 53 | . 28 14 11 Peak Tracking Total 17 | . 4 17 5 Tactical Retreats 5 | . 2 2 1 Traps | -11 -10 -9 -8 ------- Run | Yrd Mat Mat Mat Traps Triggered 2 | . 2 . . Indirectly . | . . . . Trap Hack Attempts . | . . . . Triggered . | . . . . Disarmed . | . . . . Reprogrammed 10 | . 6 . 4 Reused 3 | . 2 . 1 Traps Extracted . | . . . . Installed . | . . . . Triggered 3 | . 2 . 1 Machines | -11 -10 -9 -8 ---------- Run | Yrd Mat Mat Mat Machines Disabled . | . . . . Max in Single Turn . | . . . . Machines Repaired . | . . . . Machines Dismantled . | . . . . Machines Sabotaged . | . . . . Overloaded Fab Kills . | . . . . Hacking | -11 -10 -9 -8 --------- Run | Yrd Mat Mat Mat Machines Accessed 11 | . 4 3 4 Terminals 9 | . 3 3 3 Fabricators . | . . . . Repair Stations 1 | . . . 1 Recycling Units 1 | . 1 . . Scanalyzers . | . . . . Garrison Access . | . . . . Total Hacks 36 | . 14 8 14 Successful 20 | . 9 3 8 Failed 16 | . 5 5 6 Catastrophic 1 | . 1 . . Database Lockouts . | . . . . Manual 9 | . 1 3 5 Terminals 31 | . 10 8 13 Fabricators . | . . . . Repair Stations 1 | . . . 1 Recycling Units 4 | . 4 . . Scanalyzers . | . . . . Garrison Access . | . . . . Terminal Hacks 17 | . 6 3 8 Record 2 | . . . 2 Terminal Index 2 | . . 1 1 Alert Level 3 | . 2 . 1 Locate Traps 4 | . 2 1 1 Reprogram Traps 2 | . 1 . 1 Dispatch Records 1 | . . . 1 Patrol Status 1 | . . . 1 Investigation Status 1 | . . 1 . Hauler Manifests 1 | . 1 . . Fabricator Hacks . | . . . . Repair Station Hacks . | . . . . Recycling Unit Hacks 3 | . 3 . . Report Inventory 2 | . 2 . . Retrieve Components 1 | . 1 . . Scanalyzer . | . . . . Garrison Access Hacks . | . . . . Unauthorized Hacks . | . . . . Terminals . | . . . . Fabricators . | . . . . Repair Stations . | . . . . Recycling Units . | . . . . Scanalyzers . | . . . . Garrison Access . | . . . . Data Cores Recovered . | . . . . Used . | . . . . Hacking Detections 10 | . 4 3 3 Full Trace Events . | . . . . Feedback Events . | . . . . Feedback Blocked . | . . . . Robot Schematics Acquired . | . . . . Robots Built . | . . . . Authchips . | . . . . Time . | . . . . Total Robot Build Rating . | . . . . Part Schematics Acquired . | . . . . Parts Built . | . . . . Authchips . | . . . . Time . | . . . . Total Part Build Rating . | . . . . Parts Repaired . | . . . . Time . | . . . . Parts Recycled . | . . . . Recycled Matter . | . . . . Retrieved Matter . | . . . . Retrieved Components 8 | . 8 . . Parts Scanalyzed . | . . . . Part Schematics Acquired . | . . . . Parts Damaged . | . . . . Bothacking | -11 -10 -9 -8 ------------ Run | Yrd Mat Mat Mat Used RIF Installer . | . . . . Robots Hacked . | . . . . Non-combat . | . . . . Combat . | . . . . Robot Hacks Applied . | . . . . Relay Couplers Released . | . . . . Fabnet Peak Effective % . | . . . . Robots Rewired . | . . . . Allies Hacked . | . . . . Hacks Repelled . | . . . . Allies | -11 -10 -9 -8 -------- Run | Yrd Mat Mat Mat Total Allies . | . . . . Largest Group . | . . . . Highest-Rated Group . | . . . . Highest-Rated Ally . | . . . . Total Orders . | . . . . Ally Attacks . | . . . . Total Damage . | . . . . Kills . | . . . . Allies Corrupted . | . . . . Allies Melted . | . . . . Intel | -11 -10 -9 -8 ------- Run | Yrd Mat Mat Mat Robot Analysis Total . | . . . . Derelict Logs Recovered . | . . . . Drone Launches . | . . . . Drone Recoveries . | . . . . Exploration | -11 -10 -9 -8 ------------- Run | Yrd Mat Mat Mat Turns Passed 2304 | 57 1833 147 267 Spaces Moved 1328 | 32 735 262 299 Core 58 | 3 55 . . Treads 709 | 29 680 . . Legs . | . . . . Wheels . | . . . . Hover . | . . . . Flight 561 | . . 262 299 Fastest Speed 31 | 50 160 31 31 Average Speed 115 | 149 177 31 31 Slowest Speed 400 | 160 400 31 200 Overloaded Moves . | . . . . Propulsion Burnouts . | . . . . Robots Hopped . | . . . . Cave-ins Triggered 1 | . 1 . . Exploration Rate (%) 37 | 3 96 26 23 Regions Visited 3 Branch Regions . Pre-discovered Areas . | . . . . Known Exits Taken . | . . . . Unknown Exits Taken 3 | 1 1 1 . Scrap Searched . | . . . . Spaces Dug 19 | . 19 . . Terrain Destroyed 29 | . 29 . . Melee 19 | . 19 . . Projectile . | . . . . AOE 10 | . 10 . . Terrain Rammed . | . . . . Walls Destroyed . | . . . . Machines Disabled . | . . . . Actions | -11 -10 -9 -8 --------- Run | Yrd Mat Mat Mat Total 1941 | 38 1127 317 459 Wait 482 | . 296 36 150 Move 1324 | 31 733 261 299 Hop . | . . . . Pick Up 20 | 1 15 3 1 Fast Attach 9 | 6 2 1 . Attach 7 | . 1 5 1 Detach . | . . . . Swap 8 | . 4 2 2 Drop 7 | . 3 4 . Fire 64 | . 53 5 6 Melee 19 | . 19 . . Ram . | . . . . Kick . | . . . . Crush . | . . . . Escape Stasis 1 | . 1 . . Rewire . | . . . . Trap . | . . . . Miscellaneous . | . . . . Route ------- -11/Scrapyard -10/Materials (discovered 5 exits: *Mat x3 / [*Min x2]) -9/Materials -8/Materials History --------- Turn | Location | Event 28 | -11/Scrapyard | Discovered new exit (range 16) 58 | -11/Scrapyard | Entered Materials 305 | -10/Materials | Discovered new exit (range 10) 317 | -10/Materials | Build established: Mutant 905 | -10/Materials | Discovered new exit (range 13) 1155 | -10/Materials | Discovered new exit (range 10) 1368 | -10/Materials | Discovered new exit (range 8) 1665 | -10/Materials | Crushed by falling debris 1666 | -10/Materials | Core integrity fell below 50% 1696 | -10/Materials | Lost 3 parts (1p2n) 1749 | -10/Materials | Discovered new exit (range 18) 1891 | -10/Materials | Entered another Materials area 1891 | -9/Materials | Evolved 2 slots: Propulsion x2 2036 | -9/Materials | Discovered new exit (range 6) 2038 | -9/Materials | Entered another Materials area 2038 | -8/Materials | Evolved 2 slots: Propulsion x1, Utility x1 2194 | -8/Materials | Build established: Sprinter 2287 | -8/Materials | System corruption reached 10% 2297 | -8/Materials | Core integrity fell below 50% 2303 | -8/Materials | Core integrity fell below 20% 2305 | -8/Materials | Destroyed by G-47 Trooper with Particle Gun Last Messages --------------- 5x Patrol 6x Transport 02109_ Acquired Imp. Datajack. 02279_ Critical hit (Burn: +37). 02281_ Flight Unit destroyed. 02281_ Critical hit (Burn: +37). 02282_ Sensor Array destroyed. 02283_ Flight Unit destroyed. 02283_ System corrupted by crushing effect (+2). 02283_ System corrupted by crushing effect (+5). 02283_ Knocked back. 02285_ Assault Rifle destroyed. 02286_ Flight Unit destroyed. 02286_ System corrupted by crushing effect (+5). 02286_ Ion Engine destroyed. 02287_ Assault Rifle destroyed. 02288_ Knocked back. 02302_ Hacking Suite destroyed. 02302_ System corrupted by crushing effect (+2). 02304_ Knocked back. Map ----- +----------------------------------------------------+ | ????????????????????????????# ^ ^ ##### | | ?????????????????############ # | | ?????????????????# ! ## ^ # | | ?????????????????# ## + | | ?????????????????# # !! " "" # "" | | ?????????????????# """ """ + !! "R"" # "" | | ?????????????????# """ """ # ! """ # "" | | ?????????????????# """ """ # #######+########### | | ?????????????????# # #??# #?????? | | ?????????????????# # #??# """ #?????? | | ?????????????????########### #??# """ #?????? | | ?????????????????## ######## #### """ #?????? | | ?????????????????# # + #?????? | | ?????????????????# !! # #### """ #?????? | | ?????????????????#! ! # #??# """ #?????? | | ?????????????????# """ # #??# """ #?????? | | ?????????????????# " " """ # #??# #?????? | | ??????" ?????????# "G" """ + #??##########?????? | | ?????"" "" #### " """ # #???????##########? | | ???? T" / # #???????# #? | | ???? "" ############## ##??????# #? | | ???? ???????????# # ######## #? | | ???????????????????# # # #? | | ????????????^^?????# " gbg T + #? | | ????????????^^?????# """Y # # #? | | ????????????^^?????# """ @# ###+#### #? | | ???????????????????# """ ## ## ## #? | | ???????????????????# "" ## ## ] ## #? | | ???????????????????# """ ## ## #######+###? | | ???????????????????# "" ## ## """ #?????# #??? | | ???????????????????# ""g! ## ## """ #?????# #??? | | ???????????????????# " ## ## """ #?????# #??? | | ???????????????????# ## + #?????# #??? | | ???????????????????# ! ## #### #?????# #??? | | ???????????????????######### #??# "S #?????# #??? | | ???????????????????????????# #??# """ #?????# #??? | | ???????????????????????????# ???# ??" #?????# #??? | | ???????????????????????????# ???????????????# #??? | | ??????????????????????????##+############???# #??? | | ??????????????????????????# = #???# #??? | | ??????????????????????????# #???# #??? | | ??????????????????????????# """ !! """ #???# #??? | | ?????????????????????????## """ ! """ #???# #### | | ?????????????????????????# """ """ #???# # ] | | ??????????????????????????# #???# # | | ??????????????????????????#######+#######???# # | | ??????????????????????????????# ######### # | | ??????????????????????????????# + ! | | ??????????????????????????????# T # | | ??????????????????????????????# # | +----------------------------------------------------+ Best States ------------- Heat Dissipation 31 Energy Generation 10 Energy Capacity 250 Matter Stores 300 Matter Capacity 300 Sight Range 18 Robot Scan Range 14 Terrain Scan Density 10 Evasion (%) 63 Recoil Reduction 2 Offensive Hacking 10 Item Schematics ----------------- None Robot Schematics ------------------ None Fabricated ------------ Nothing Alien Tech Used ----------------- None Achievements -------------- Part-time Excavator Unlikely Earthworm root@ Challenges ------------ None Game ------ Seed ComponentVariableMonowheel Manual? 0 Play Time 00:27:06 Cumulative 6.3 hours Start 2024.04.03 @ 22:37:31 End 2024.04.03 @ 23:04:54 Sessions 1 Manual Loads 0 Difficulty Rogue Special Mode None Game No. 18 Rogue 18 Adventurer 0 Explorer 0 Win Type - Total 0 Types 0/0/0/0/0/0/0/0/0 Lore% 6 Gallery% 10 Achievement% 12 Wizard Run 0 Options --------- Layout 0 ASCII 0 Keyboard 0 Movement Mouse Keybinds 0 Fullscreen 1 Font 24/Smallcaps Map View 76x50 Zoom Use 0% Tactical HUD 1 Map Filters NONE Filters NONE Steam 1 RUN: e73586a1-216f-4fe5-8f7b-e94d09555173